{"text_format":"1","workbook":"xlsx","n_sheets":4,"sheets":["Люберцы Кирова АБ","Люберцы Кирова Ж","ЖК Малаховский квартал","Счета на оплату"],"not_rendered":{"charts":0,"images":0,"macros":1,"external_links":0,"defined_names":3,"comments":0,"pivot_tables":0},"unopened":[],"bounds":{"document_bytes":16777216,"sheet_cells":100000,"rows_first":2000,"rows_last":500,"rows_between":2000,"halvings":0,"cell_chars":16384,"cell_head_chars":4096},"cells_cut":0,"cells_raw":0,"read":"whole","date_system":"1900"}

{"sheet":"Люберцы Кирова АБ","index":0,"n_rows":3,"n_cols":11,"rows_kept":3,"cut":false,"hidden":false,"merged":[]}
["№№ С/З","Номер счета","Дата счета","Контрагент","Сумма","Содержание счета","Дата оплаты","Дата получения","Документы скан","Документы оригинал","Примечание"]
["1АБ0504",448,"2019-04-05","Юнион газ",15850,"пропан"]
["2АБ0504","ЕЭ00318483","2019-04-05","Петрович",52194.16,"метизы, расходники"]

{"sheet":"Люберцы Кирова Ж","index":1,"n_rows":3,"n_cols":11,"rows_kept":3,"cut":false,"hidden":false,"merged":[]}
["№№ С/З","Номер счета","Дата счета","Контрагент","Сумма","Содержание счета","Дата оплаты","Дата получения","Документы скан","Документы оригинал","Примечание"]
["ывса"]
["ваплюьлола"]

{"sheet":"ЖК Малаховский квартал","index":2,"n_rows":3,"n_cols":11,"rows_kept":3,"cut":false,"hidden":false,"merged":[]}
["№№ С/З","Номер счета","Дата счета","Контрагент","Сумма","Содержание счета","Дата оплаты","Дата получения","Документы скан","Документы оригинал","Примечание"]
["1мк0304","фс-627","2019-04-04","фора-с",41610,"расходники","2019-04-05"]
["1мк0304","нб000006255","2019-04-04","Баустов",527596,"мембрана"]

{"sheet":"Счета на оплату","index":3,"n_rows":68,"n_cols":7,"rows_kept":68,"cut":false,"hidden":false,"merged":[]}
[]
["№№ С/З","Номер счета","Дата счета","Контрагент","Содержание счета","Сумма","Дата оплаты"]
[]
[]
["Люберцы Кирова АБ"]
[]
["№№ С/З","Номер счета","Дата счета","Контрагент","Содержание счета","Сумма","дата"]
[null,null,null,null,null,null,0]
[]
[]
["№№ С/З","Номер счета","Дата счета","Контрагент","Содержание счета","Сумма","дата"]
[{"$f":"TEXT('Люберцы Кирова АБ'!A2,)","v":"1АБ0504"},{"$f":"TEXT('Люберцы Кирова АБ'!B2,)","v":""},{"$f":"TEXT('Люберцы Кирова АБ'!C2,)","v":""},{"$f":"TEXT('Люберцы Кирова АБ'!D2,)","v":"Юнион газ"},{"$f":"TEXT('Люберцы Кирова АБ'!F2,)","v":"пропан"},{"$f":"'Люберцы Кирова АБ'!E2","v":15850},{"$f":"'Люберцы Кирова АБ'!G2","v":0}]
[{"$f":"TEXT('Люберцы Кирова АБ'!A3,)","v":"2АБ0504"},{"$f":"TEXT('Люберцы Кирова АБ'!B3,)","v":"ЕЭ00318483"},{"$f":"TEXT('Люберцы Кирова АБ'!C3,)","v":""},{"$f":"TEXT('Люберцы Кирова АБ'!D3,)","v":"Петрович"},{"$f":"TEXT('Люберцы Кирова АБ'!F3,)","v":"метизы, расходники"},{"$f":"'Люберцы Кирова АБ'!E3","v":52194.16},{"$f":"'Люберцы Кирова АБ'!G3","v":0}]
[{"$f":"TEXT('Люберцы Кирова АБ'!A4,)","v":""},{"$f":"TEXT('Люберцы Кирова АБ'!B4,)","v":""},{"$f":"TEXT('Люберцы Кирова АБ'!C4,)","v":""},{"$f":"TEXT('Люберцы Кирова АБ'!D4,)","v":""},{"$f":"TEXT('Люберцы Кирова АБ'!F4,)","v":""},{"$f":"'Люберцы Кирова АБ'!E4","v":0},{"$f":"'Люберцы Кирова АБ'!G4","v":0}]
[{"$f":"TEXT('Люберцы Кирова АБ'!A5,)","v":""},{"$f":"TEXT('Люберцы Кирова АБ'!B5,)","v":""},{"$f":"TEXT('Люберцы Кирова АБ'!C5,)","v":""},{"$f":"TEXT('Люберцы Кирова АБ'!D5,)","v":""},{"$f":"TEXT('Люберцы Кирова АБ'!F5,)","v":""},{"$f":"'Люберцы Кирова АБ'!E5","v":0},{"$f":"'Люберцы Кирова АБ'!G5","v":0}]
[{"$f":"TEXT('Люберцы Кирова АБ'!A6,)","v":""},{"$f":"TEXT('Люберцы Кирова АБ'!B6,)","v":""},{"$f":"TEXT('Люберцы Кирова АБ'!C6,)","v":""},{"$f":"TEXT('Люберцы Кирова АБ'!D6,)","v":""},{"$f":"TEXT('Люберцы Кирова АБ'!F6,)","v":""},{"$f":"'Люберцы Кирова АБ'!E6","v":0},{"$f":"'Люберцы Кирова АБ'!G6","v":0}]
[{"$f":"TEXT('Люберцы Кирова АБ'!A7,)","v":""},{"$f":"TEXT('Люберцы Кирова АБ'!B7,)","v":""},{"$f":"TEXT('Люберцы Кирова АБ'!C7,)","v":""},{"$f":"TEXT('Люберцы Кирова АБ'!D7,)","v":""},{"$f":"TEXT('Люберцы Кирова АБ'!F7,)","v":""},{"$f":"'Люберцы Кирова АБ'!E7","v":0},{"$f":"'Люберцы Кирова АБ'!G7","v":0}]
[{"$f":"TEXT('Люберцы Кирова АБ'!A8,)","v":""},{"$f":"TEXT('Люберцы Кирова АБ'!B8,)","v":""},{"$f":"TEXT('Люберцы Кирова АБ'!C8,)","v":""},{"$f":"TEXT('Люберцы Кирова АБ'!D8,)","v":""},{"$f":"TEXT('Люберцы Кирова АБ'!F8,)","v":""},{"$f":"'Люберцы Кирова АБ'!E8","v":0},{"$f":"'Люберцы Кирова АБ'!G8","v":0}]
[{"$f":"TEXT('Люберцы Кирова АБ'!A9,)","v":""},{"$f":"TEXT('Люберцы Кирова АБ'!B9,)","v":""},{"$f":"TEXT('Люберцы Кирова АБ'!C9,)","v":""},{"$f":"TEXT('Люберцы Кирова АБ'!D9,)","v":""},{"$f":"TEXT('Люберцы Кирова АБ'!F9,)","v":""},{"$f":"'Люберцы Кирова АБ'!E9","v":0},{"$f":"'Люберцы Кирова АБ'!G9","v":0}]
[{"$f":"TEXT('Люберцы Кирова АБ'!A10,)","v":""},{"$f":"TEXT('Люберцы Кирова АБ'!B10,)","v":""},{"$f":"TEXT('Люберцы Кирова АБ'!C10,)","v":""},{"$f":"TEXT('Люберцы Кирова АБ'!D10,)","v":""},{"$f":"TEXT('Люберцы Кирова АБ'!F10,)","v":""},{"$f":"'Люберцы Кирова АБ'!E10","v":0},{"$f":"'Люберцы Кирова АБ'!G10","v":0}]
[{"$f":"TEXT('Люберцы Кирова АБ'!A11,)","v":""},{"$f":"TEXT('Люберцы Кирова АБ'!B11,)","v":""},{"$f":"TEXT('Люберцы Кирова АБ'!C11,)","v":""},{"$f":"TEXT('Люберцы Кирова АБ'!D11,)","v":""},{"$f":"TEXT('Люберцы Кирова АБ'!F11,)","v":""},{"$f":"'Люберцы Кирова АБ'!E11","v":0},{"$f":"'Люберцы Кирова АБ'!G11","v":0}]
[{"$f":"TEXT('Люберцы Кирова АБ'!A12,)","v":""},{"$f":"TEXT('Люберцы Кирова АБ'!B12,)","v":""},{"$f":"TEXT('Люберцы Кирова АБ'!C12,)","v":""},{"$f":"TEXT('Люберцы Кирова АБ'!D12,)","v":""},{"$f":"TEXT('Люберцы Кирова АБ'!F12,)","v":""},{"$f":"'Люберцы Кирова АБ'!E12","v":0},{"$f":"'Люберцы Кирова АБ'!G12","v":0}]
[{"$f":"TEXT('Люберцы Кирова АБ'!A13,)","v":""},{"$f":"TEXT('Люберцы Кирова АБ'!B13,)","v":""},{"$f":"TEXT('Люберцы Кирова АБ'!C13,)","v":""},{"$f":"TEXT('Люберцы Кирова АБ'!D13,)","v":""},{"$f":"TEXT('Люберцы Кирова АБ'!F13,)","v":""},{"$f":"'Люберцы Кирова АБ'!E13","v":0},{"$f":"'Люберцы Кирова АБ'!G13","v":0}]
[{"$f":"TEXT('Люберцы Кирова АБ'!A14,)","v":""},{"$f":"TEXT('Люберцы Кирова АБ'!B14,)","v":""},{"$f":"TEXT('Люберцы Кирова АБ'!C14,)","v":""},{"$f":"TEXT('Люберцы Кирова АБ'!D14,)","v":""},{"$f":"TEXT('Люберцы Кирова АБ'!F14,)","v":""},{"$f":"'Люберцы Кирова АБ'!E14","v":0},{"$f":"'Люберцы Кирова АБ'!G14","v":0}]
[{"$f":"TEXT('Люберцы Кирова АБ'!A15,)","v":""},{"$f":"TEXT('Люберцы Кирова АБ'!B15,)","v":""},{"$f":"TEXT('Люберцы Кирова АБ'!C15,)","v":""},{"$f":"TEXT('Люберцы Кирова АБ'!D15,)","v":""},{"$f":"TEXT('Люберцы Кирова АБ'!F15,)","v":""},{"$f":"'Люберцы Кирова АБ'!E15","v":0},{"$f":"'Люберцы Кирова АБ'!G15","v":0}]
["Итого",{"$f":"TEXT('Люберцы Кирова АБ'!B16,)","v":""},{"$f":"TEXT('Люберцы Кирова АБ'!C16,)","v":""},{"$f":"TEXT('Люберцы Кирова АБ'!D16,)","v":""},{"$f":"TEXT('Люберцы Кирова АБ'!F16,)","v":""},{"$f":"SUM(F12:F25)","v":68044.160000000003},{"$f":"'Люберцы Кирова АБ'!G16","v":0}]
[null,null,null,null,null,null,0]
[null,null,null,null,null,null,0]
[null,null,null,null,null,null,0]
["Люберцы Кирова Ж",null,null,null,null,null,0]
[null,null,null,null,null,null,0]
["№№ С/З","Номер счета","Дата счета","Контрагент","Содержание счета","Сумма",0]
[{"$f":"TEXT('Люберцы Кирова Ж'!A2,)","v":"ывса"},{"$f":"TEXT('Люберцы Кирова Ж'!B2,)","v":""},{"$f":"TEXT('Люберцы Кирова Ж'!C2,)","v":""},{"$f":"TEXT('Люберцы Кирова Ж'!D2,)","v":""},{"$f":"TEXT('Люберцы Кирова Ж'!F2,)","v":""},{"$f":"'Люберцы Кирова Ж'!E2","v":0},{"$f":"'Люберцы Кирова Ж'!G2","v":0}]
[{"$f":"TEXT('Люберцы Кирова Ж'!A3,)","v":"ваплюьлола"},{"$f":"TEXT('Люберцы Кирова Ж'!B3,)","v":""},{"$f":"TEXT('Люберцы Кирова Ж'!C3,)","v":""},{"$f":"TEXT('Люберцы Кирова Ж'!D3,)","v":""},{"$f":"TEXT('Люберцы Кирова Ж'!F3,)","v":""},{"$f":"'Люберцы Кирова Ж'!E3","v":0},{"$f":"'Люберцы Кирова Ж'!G3","v":0}]
[{"$f":"TEXT('Люберцы Кирова Ж'!A4,)","v":""},{"$f":"TEXT('Люберцы Кирова Ж'!B4,)","v":""},{"$f":"TEXT('Люберцы Кирова Ж'!C4,)","v":""},{"$f":"TEXT('Люберцы Кирова Ж'!D4,)","v":""},{"$f":"TEXT('Люберцы Кирова Ж'!F4,)","v":""},{"$f":"'Люберцы Кирова Ж'!E4","v":0},{"$f":"'Люберцы Кирова Ж'!G4","v":0}]
[{"$f":"TEXT('Люберцы Кирова Ж'!A5,)","v":""},{"$f":"TEXT('Люберцы Кирова Ж'!B5,)","v":""},{"$f":"TEXT('Люберцы Кирова Ж'!C5,)","v":""},{"$f":"TEXT('Люберцы Кирова Ж'!D5,)","v":""},{"$f":"TEXT('Люберцы Кирова Ж'!F5,)","v":""},{"$f":"'Люберцы Кирова Ж'!E5","v":0},{"$f":"'Люберцы Кирова Ж'!G5","v":0}]
[{"$f":"TEXT('Люберцы Кирова Ж'!A6,)","v":""},{"$f":"TEXT('Люберцы Кирова Ж'!B6,)","v":""},{"$f":"TEXT('Люберцы Кирова Ж'!C6,)","v":""},{"$f":"TEXT('Люберцы Кирова Ж'!D6,)","v":""},{"$f":"TEXT('Люберцы Кирова Ж'!F6,)","v":""},{"$f":"'Люберцы Кирова Ж'!E6","v":0},{"$f":"'Люберцы Кирова Ж'!G6","v":0}]
[{"$f":"TEXT('Люберцы Кирова Ж'!A7,)","v":""},{"$f":"TEXT('Люберцы Кирова Ж'!B7,)","v":""},{"$f":"TEXT('Люберцы Кирова Ж'!C7,)","v":""},{"$f":"TEXT('Люберцы Кирова Ж'!D7,)","v":""},{"$f":"TEXT('Люберцы Кирова Ж'!F7,)","v":""},{"$f":"'Люберцы Кирова Ж'!E7","v":0},{"$f":"'Люберцы Кирова Ж'!G7","v":0}]
[{"$f":"TEXT('Люберцы Кирова Ж'!A8,)","v":""},{"$f":"TEXT('Люберцы Кирова Ж'!B8,)","v":""},{"$f":"TEXT('Люберцы Кирова Ж'!C8,)","v":""},{"$f":"TEXT('Люберцы Кирова Ж'!D8,)","v":""},{"$f":"TEXT('Люберцы Кирова Ж'!F8,)","v":""},{"$f":"'Люберцы Кирова Ж'!E8","v":0},{"$f":"'Люберцы Кирова Ж'!G8","v":0}]
[{"$f":"TEXT('Люберцы Кирова Ж'!A9,)","v":""},{"$f":"TEXT('Люберцы Кирова Ж'!B9,)","v":""},{"$f":"TEXT('Люберцы Кирова Ж'!C9,)","v":""},{"$f":"TEXT('Люберцы Кирова Ж'!D9,)","v":""},{"$f":"TEXT('Люберцы Кирова Ж'!F9,)","v":""},{"$f":"'Люберцы Кирова Ж'!E9","v":0},{"$f":"'Люберцы Кирова Ж'!G9","v":0}]
[{"$f":"TEXT('Люберцы Кирова Ж'!A10,)","v":""},{"$f":"TEXT('Люберцы Кирова Ж'!B10,)","v":""},{"$f":"TEXT('Люберцы Кирова Ж'!C10,)","v":""},{"$f":"TEXT('Люберцы Кирова Ж'!D10,)","v":""},{"$f":"TEXT('Люберцы Кирова Ж'!F10,)","v":""},{"$f":"'Люберцы Кирова Ж'!E10","v":0},{"$f":"'Люберцы Кирова Ж'!G10","v":0}]
[{"$f":"TEXT('Люберцы Кирова Ж'!A11,)","v":""},{"$f":"TEXT('Люберцы Кирова Ж'!B11,)","v":""},{"$f":"TEXT('Люберцы Кирова Ж'!C11,)","v":""},{"$f":"TEXT('Люберцы Кирова Ж'!D11,)","v":""},{"$f":"TEXT('Люберцы Кирова Ж'!F11,)","v":""},{"$f":"'Люберцы Кирова Ж'!E11","v":0},{"$f":"'Люберцы Кирова Ж'!G11","v":0}]
[{"$f":"TEXT('Люберцы Кирова Ж'!A12,)","v":""},{"$f":"TEXT('Люберцы Кирова Ж'!B12,)","v":""},{"$f":"TEXT('Люберцы Кирова Ж'!C12,)","v":""},{"$f":"TEXT('Люберцы Кирова Ж'!D12,)","v":""},{"$f":"TEXT('Люберцы Кирова Ж'!F12,)","v":""},{"$f":"'Люберцы Кирова Ж'!E12","v":0},{"$f":"'Люберцы Кирова Ж'!G12","v":0}]
[{"$f":"TEXT('Люберцы Кирова Ж'!A13,)","v":""},{"$f":"TEXT('Люберцы Кирова Ж'!B13,)","v":""},{"$f":"TEXT('Люберцы Кирова Ж'!C13,)","v":""},{"$f":"TEXT('Люберцы Кирова Ж'!D13,)","v":""},{"$f":"TEXT('Люберцы Кирова Ж'!F13,)","v":""},{"$f":"'Люберцы Кирова Ж'!E13","v":0},{"$f":"'Люберцы Кирова Ж'!G13","v":0}]
[{"$f":"TEXT('Люберцы Кирова Ж'!A14,)","v":""},{"$f":"TEXT('Люберцы Кирова Ж'!B14,)","v":""},{"$f":"TEXT('Люберцы Кирова Ж'!C14,)","v":""},{"$f":"TEXT('Люберцы Кирова Ж'!D14,)","v":""},{"$f":"TEXT('Люберцы Кирова Ж'!F14,)","v":""},{"$f":"'Люберцы Кирова Ж'!E14","v":0},{"$f":"'Люберцы Кирова Ж'!G14","v":0}]
[{"$f":"TEXT('Люберцы Кирова Ж'!A15,)","v":""},{"$f":"TEXT('Люберцы Кирова Ж'!B15,)","v":""},{"$f":"TEXT('Люберцы Кирова Ж'!C15,)","v":""},{"$f":"TEXT('Люберцы Кирова Ж'!D15,)","v":""},{"$f":"TEXT('Люберцы Кирова Ж'!F15,)","v":""},{"$f":"'Люберцы Кирова Ж'!E15","v":0},{"$f":"'Люберцы Кирова Ж'!G15","v":0}]
["Итого",{"$f":"TEXT('Люберцы Кирова Ж'!B16,)","v":""},{"$f":"TEXT('Люберцы Кирова Ж'!C16,)","v":""},{"$f":"TEXT('Люберцы Кирова Ж'!D16,)","v":""},{"$f":"TEXT('Люберцы Кирова Ж'!F16,)","v":""},{"$f":"SUM(F33:F46)","v":0},0]
[null,null,null,null,null,null,0]
["ЖК Малаховский квартал",null,null,null,null,null,0]
[null,null,null,null,null,null,0]
["№№ С/З","Номер счета","Дата счета","Контрагент","Содержание счета","Сумма",0]
[{"$f":"TEXT('ЖК Малаховский квартал'!A2,)","v":"1мк0304"},{"$f":"TEXT('ЖК Малаховский квартал'!B2,)","v":"фс-627"},{"$f":"TEXT('ЖК Малаховский квартал'!C2,)","v":""},{"$f":"TEXT('ЖК Малаховский квартал'!D2,)","v":"фора-с"},{"$f":"TEXT('ЖК Малаховский квартал'!F2,)","v":"расходники"},{"$f":"'ЖК Малаховский квартал'!E2","v":41610},{"$f":"'ЖК Малаховский квартал'!G2","v":43560}]
[{"$f":"TEXT('ЖК Малаховский квартал'!A3,)","v":"1мк0304"},{"$f":"TEXT('ЖК Малаховский квартал'!B3,)","v":"нб000006255"},{"$f":"TEXT('ЖК Малаховский квартал'!C3,)","v":""},{"$f":"TEXT('ЖК Малаховский квартал'!D3,)","v":"Баустов"},{"$f":"TEXT('ЖК Малаховский квартал'!F3,)","v":"мембрана"},{"$f":"'ЖК Малаховский квартал'!E3","v":527596},{"$f":"'ЖК Малаховский квартал'!G3","v":0}]
[{"$f":"TEXT('ЖК Малаховский квартал'!A4,)","v":""},{"$f":"TEXT('ЖК Малаховский квартал'!B4,)","v":""},{"$f":"TEXT('ЖК Малаховский квартал'!C4,)","v":""},{"$f":"TEXT('ЖК Малаховский квартал'!D4,)","v":""},{"$f":"TEXT('ЖК Малаховский квартал'!F4,)","v":""},{"$f":"'ЖК Малаховский квартал'!E4","v":0},{"$f":"'ЖК Малаховский квартал'!G4","v":0}]
[{"$f":"TEXT('ЖК Малаховский квартал'!A5,)","v":""},{"$f":"TEXT('ЖК Малаховский квартал'!B5,)","v":""},{"$f":"TEXT('ЖК Малаховский квартал'!C5,)","v":""},{"$f":"TEXT('ЖК Малаховский квартал'!D5,)","v":""},{"$f":"TEXT('ЖК Малаховский квартал'!F5,)","v":""},{"$f":"'ЖК Малаховский квартал'!E5","v":0},{"$f":"'ЖК Малаховский квартал'!G5","v":0}]
[{"$f":"TEXT('ЖК Малаховский квартал'!A6,)","v":""},{"$f":"TEXT('ЖК Малаховский квартал'!B6,)","v":""},{"$f":"TEXT('ЖК Малаховский квартал'!C6,)","v":""},{"$f":"TEXT('ЖК Малаховский квартал'!D6,)","v":""},{"$f":"TEXT('ЖК Малаховский квартал'!F6,)","v":""},{"$f":"'ЖК Малаховский квартал'!E6","v":0},{"$f":"'ЖК Малаховский квартал'!G6","v":0}]
[{"$f":"TEXT('ЖК Малаховский квартал'!A7,)","v":""},{"$f":"TEXT('ЖК Малаховский квартал'!B7,)","v":""},{"$f":"TEXT('ЖК Малаховский квартал'!C7,)","v":""},{"$f":"TEXT('ЖК Малаховский квартал'!D7,)","v":""},{"$f":"TEXT('ЖК Малаховский квартал'!F7,)","v":""},{"$f":"'ЖК Малаховский квартал'!E7","v":0},{"$f":"'ЖК Малаховский квартал'!G7","v":0}]
[{"$f":"TEXT('ЖК Малаховский квартал'!A8,)","v":""},{"$f":"TEXT('ЖК Малаховский квартал'!B8,)","v":""},{"$f":"TEXT('ЖК Малаховский квартал'!C8,)","v":""},{"$f":"TEXT('ЖК Малаховский квартал'!D8,)","v":""},{"$f":"TEXT('ЖК Малаховский квартал'!F8,)","v":""},{"$f":"'ЖК Малаховский квартал'!E8","v":0},{"$f":"'ЖК Малаховский квартал'!G8","v":0}]
[{"$f":"TEXT('ЖК Малаховский квартал'!A9,)","v":""},{"$f":"TEXT('ЖК Малаховский квартал'!B9,)","v":""},{"$f":"TEXT('ЖК Малаховский квартал'!C9,)","v":""},{"$f":"TEXT('ЖК Малаховский квартал'!D9,)","v":""},{"$f":"TEXT('ЖК Малаховский квартал'!F9,)","v":""},{"$f":"'ЖК Малаховский квартал'!E9","v":0},{"$f":"'ЖК Малаховский квартал'!G9","v":0}]
[{"$f":"TEXT('ЖК Малаховский квартал'!A10,)","v":""},{"$f":"TEXT('ЖК Малаховский квартал'!B10,)","v":""},{"$f":"TEXT('ЖК Малаховский квартал'!C10,)","v":""},{"$f":"TEXT('ЖК Малаховский квартал'!D10,)","v":""},{"$f":"TEXT('ЖК Малаховский квартал'!F10,)","v":""},{"$f":"'ЖК Малаховский квартал'!E10","v":0},{"$f":"'ЖК Малаховский квартал'!G10","v":0}]
[{"$f":"TEXT('ЖК Малаховский квартал'!A11,)","v":""},{"$f":"TEXT('ЖК Малаховский квартал'!B11,)","v":""},{"$f":"TEXT('ЖК Малаховский квартал'!C11,)","v":""},{"$f":"TEXT('ЖК Малаховский квартал'!D11,)","v":""},{"$f":"TEXT('ЖК Малаховский квартал'!F11,)","v":""},{"$f":"'ЖК Малаховский квартал'!E11","v":0},{"$f":"'ЖК Малаховский квартал'!G11","v":0}]
[{"$f":"TEXT('ЖК Малаховский квартал'!A12,)","v":""},{"$f":"TEXT('ЖК Малаховский квартал'!B12,)","v":""},{"$f":"TEXT('ЖК Малаховский квартал'!C12,)","v":""},{"$f":"TEXT('ЖК Малаховский квартал'!D12,)","v":""},{"$f":"TEXT('ЖК Малаховский квартал'!F12,)","v":""},{"$f":"'ЖК Малаховский квартал'!E12","v":0},{"$f":"'ЖК Малаховский квартал'!G12","v":0}]
[{"$f":"TEXT('ЖК Малаховский квартал'!A13,)","v":""},{"$f":"TEXT('ЖК Малаховский квартал'!B13,)","v":""},{"$f":"TEXT('ЖК Малаховский квартал'!C13,)","v":""},{"$f":"TEXT('ЖК Малаховский квартал'!D13,)","v":""},{"$f":"TEXT('ЖК Малаховский квартал'!F13,)","v":""},{"$f":"'ЖК Малаховский квартал'!E13","v":0},{"$f":"'ЖК Малаховский квартал'!G13","v":0}]
[{"$f":"TEXT('ЖК Малаховский квартал'!A14,)","v":""},{"$f":"TEXT('ЖК Малаховский квартал'!B14,)","v":""},{"$f":"TEXT('ЖК Малаховский квартал'!C14,)","v":""},{"$f":"TEXT('ЖК Малаховский квартал'!D14,)","v":""},{"$f":"TEXT('ЖК Малаховский квартал'!F14,)","v":""},{"$f":"'ЖК Малаховский квартал'!E14","v":0},{"$f":"'ЖК Малаховский квартал'!G14","v":0}]
[{"$f":"TEXT('ЖК Малаховский квартал'!A15,)","v":""},{"$f":"TEXT('ЖК Малаховский квартал'!B15,)","v":""},{"$f":"TEXT('ЖК Малаховский квартал'!C15,)","v":""},{"$f":"TEXT('ЖК Малаховский квартал'!D15,)","v":""},{"$f":"TEXT('ЖК Малаховский квартал'!F15,)","v":""},{"$f":"'ЖК Малаховский квартал'!E15","v":0},{"$f":"'ЖК Малаховский квартал'!G15","v":0}]
["Итого",{"$f":"TEXT('ЖК Малаховский квартал'!B16,)","v":""},{"$f":"TEXT('ЖК Малаховский квартал'!C16,)","v":""},{"$f":"TEXT('ЖК Малаховский квартал'!D16,)","v":""},{"$f":"TEXT('ЖК Малаховский квартал'!F16,)","v":""},{"$f":"SUM(F52:F65)","v":569206},0]
[null,null,null,null,null,null,0]
["Итого по оплатам",null,null,null,null,{"$f":"F66+F47+F26","v":637250.16},0]